bitfinex/quotes_ETHUSD_20250114
["timestamp","ask_amount","ask_price","bid_price","bid_amount"]
[1736855486045,0.03881314,3220.8,3220.0,3.79611842]
[1736855486263,3.0,3220.9,3220.0,3.79611842]
[1736855486764,0.03881314,3220.8,3220.1,0.8863]
[1736855486948,3.10468,3221.0,3220.3,0.8863]
[1736855488531,0.0075,3221.3,3219.9,0.8863]
[1736855488532,0.03881313,3220.9,3219.9,0.8863]
[1736855488729,3.10502,3220.6,3219.9,0.8863]
[1736855488934,3.8798,3220.7,3219.9,0.8863]
[1736855489171,3.98472,3220.7,3220.0,0.29063308]
[1736855489332,3.98472,3220.7,3220.0,0.58126616]
[1736855489536,0.03881746,3220.6,3219.9,0.46756616]
[1736855489747,0.03881746,3220.6,3219.9,1.14578374]
[1736855490173,3.98472,3220.7,3219.9,1.14578374]
[1736855492743,3.10478,3220.9,3220.0,0.9219]
[1736855493258,0.87,3221.0,3220.1,3.10548]
[1736855493565,3.97467,3221.0,3220.2,0.9219]
[1736855493820,3.0,3220.9,3220.2,1.324638]
[1736855494519,0.0388133,3220.8,3220.2,1.324638]
[1736855494704,0.0388133,3220.8,3220.2,0.9219]
[1736855495378,0.03881336,3220.9,3220.2,0.9219]
[1736855495787,3.10498,3220.7,3219.9,0.9219]
[1736855496019,3.14382742,3220.6,3219.9,0.9219]
[1736855496302,3.97512,3220.5,3219.9,0.9219]
[1736855496468,0.03881712,3220.4,3219.9,0.9219]
[1736855496667,3.97512,3220.5,3219.8,0.4156873]
[1736855496864,0.03881671,3220.4,3219.8,0.4156873]
[1736855497069,3.97512,3220.5,3219.8,0.4156873]
[1736855497070,0.87,3220.5,3219.8,0.4156873]
[1736855497491,0.03881671,3220.4,3219.8,0.4156873]
[1736855497773,0.87,3220.5,3219.8,0.4156873]
[1736855498386,0.03881719,3220.4,3219.8,0.4156873]
[1736855498594,0.03881719,3220.4,3219.5,4.04301224]
[1736855498793,3.14401719,3220.4,3219.6,3.10596]
[1736855499675,3.14401719,3220.4,3219.7,0.9219]
[1736855500298,0.03881719,3220.4,3219.7,4.02776]
[1736855500493,0.03881719,3220.4,3219.8,0.402776]
[1736855500884,3.0,3220.5,3219.8,0.402776]
[1736855501100,3.10505,3220.6,3219.8,3.508516]
[1736855501825,3.10505,3220.6,3219.8,0.402776]
[1736855502123,0.03881864,3220.5,3219.9,0.2911248]
[1736855502434,0.03881864,3220.5,3219.9,0.58225751]
[1736855503525,0.03881864,3220.5,3220.0,0.2911248]
[1736855504116,3.14394864,3220.5,3220.0,0.2911248]
[1736855504611,3.14394864,3220.5,3219.7,4.02775]
[1736855504803,3.14394864,3220.5,3219.7,4.430525]
[1736855505327,3.10522,3220.4,3219.8,0.29117648]
[1736855505632,6.10568,3219.9,3219.8,0.58235324]
[1736855505794,6.98318,3219.9,3219.8,0.58235324]
[1736855506503,6.98318,3219.9,3219.8,0.29117676]
[1736855506815,3.10649,3219.1,3218.6,0.9219]
[1736855507021,0.03883678,3219.0,3218.6,0.9219]
[1736855507332,0.03883678,3219.0,3218.7,0.29098299]
[1736855507650,6.10679,3218.8,3218.7,0.29098299]
[1736855508499,6.10679,3218.8,3218.3,0.9219]
[1736855508700,0.03883887,3218.7,3218.3,0.9219]
[1736855509512,3.0,3218.8,3218.3,0.9219]
[1736855509722,2.9340308,3219.7,3218.3,0.9219]
[1736855509723,0.87,3219.4,3218.5,3.10701]
[1736855509906,0.87,3219.4,3218.7,0.9219]
[1736855510115,0.03883222,3219.3,3218.7,0.9219]
[1736855510308,3.03883222,3219.3,3218.7,0.9219]
[1736855510540,3.14512222,3219.3,3218.7,0.9219]
[1736855510852,3.10648,3219.1,3218.4,0.9219]
[1736855511000,0.0388379,3219.0,3218.4,0.9219]
[1736855511196,0.0388379,3219.0,3218.4,1.324818]
[1736855512441,3.87,3219.4,3218.4,1.324818]
[1736855512631,3.97594,3219.7,3218.6,6.0408808]
[1736855512825,0.03883076,3219.6,3218.6,3.10685]
[1736855513138,3.97616,3219.4,3218.5,0.9219]
[1736855513307,3.10662,3219.0,3218.5,0.9219]
[1736855513497,0.03883697,3218.9,3218.5,0.9219]
[1736855513960,3.0,3219.0,3218.5,0.9219]
[1736855514442,3.14511863,3219.3,3218.5,0.9219]
[1736855516441,0.87,3219.4,3218.5,0.9219]
[1736855516644,3.87,3219.4,3218.5,0.9219]
[1736855516822,3.0,3219.2,3218.5,0.9219]
[1736855517213,0.87,3219.4,3218.5,0.9219]
[1736855517437,3.97619,3219.4,3218.5,4.02892]
[1736855520732,0.03883476,3219.3,3218.5,0.9219]
[1736855520924,3.10646,3219.1,3218.5,0.9219]
[1736855521109,0.0388348,3219.0,3218.0,2.9340308]
[1736855521310,0.0388348,3219.0,3218.2,3.10732]
[1736855522612,0.0388348,3219.0,3218.1,0.84918408]
[1736855522613,0.0388348,3219.0,3218.4,3.10709]
[1736855522805,3.0,3219.2,3218.4,3.10709]
[1736855523011,0.87,3219.4,3218.3,2.9340308]
[1736855523211,3.10606,3219.6,3218.6,3.10692]
[1736855523411,3.0,3219.5,3218.7,0.310692]
[1736855524231,3.0,3219.5,3218.8,0.8696]
[1736855524930,3.0,3219.5,3218.8,3.97634]
[1736855525254,3.9023,3219.7,3218.8,3.97634]
[1736855525455,0.03883037,3219.6,3218.9,3.10663]
[1736855525756,3.10607,3219.5,3218.8,0.8696]
[1736855525960,0.03882828,3219.4,3218.8,1.2983072]
[1736855526165,3.14502828,3219.4,3218.8,0.8696]
[1736855527325,0.03882828,3219.4,3218.8,0.8696]
[1736855527561,3.03883066,3219.5,3218.8,0.8696]
[1736855527722,3.0,3219.5,3218.8,0.8696]
[1736855527926,3.0,3219.5,3218.9,0.397637]
[1736855528163,0.9023,3220.1,3219.0,0.8696]
[1736855528374,3.10577,3219.9,3219.0,3.97607]
[1736855528673,3.14460595,3219.8,3219.0,3.97607]
[1736855528964,0.03882595,3219.8,3219.0,0.8696]
[1736855529261,0.9023,3220.1,3219.0,0.8696]
[1736855529262,3.0,3219.6,3219.0,0.8696]
[1736855531684,3.10621,3219.4,3218.8,0.8696]
[1736855531842,0.03883223,3219.3,3218.8,0.8696]
[1736855534274,3.14510223,3219.3,3218.8,0.8696]
[1736855534676,0.03883223,3219.3,3218.8,0.8696]
[1736855534885,0.0388322,3219.4,3218.8,0.8696]
[1736855535258,3.1449922,3219.4,3218.8,0.8696]
[1736855536601,0.0388322,3219.4,3218.8,0.8696]
[1736855536905,3.10626,3219.3,3218.8,0.8696]
[1736855537097,0.03883249,3219.2,3218.8,0.8696]
[1736855540909,3.14522249,3219.2,3218.8,0.8696]
[1736855541212,3.10677,3218.8,3218.1,0.8882]
[1736855541404,0.03884016,3218.7,3218.1,0.8882]
[1736855541712,0.03884016,3218.7,3218.3,0.29126164]
[1736855542509,0.03884016,3218.7,3218.1,0.8882]
[1736855543288,0.03884016,3218.7,3218.2,0.2911994]
[1736855544302,0.03884016,3218.7,3218.1,0.8882]
[1736855547628,3.11414,3219.0,3218.1,0.8882]
[1736855547827,3.10665,3218.9,3218.1,0.8882]
[1736855547995,4.00839,3219.1,3218.3,3.10721]
[1736855548199,4.00839,3219.1,3218.4,0.8882]
[1736855548733,0.0388361,3219.0,3218.4,0.8882]
[1736855550432,3.10614,3219.5,3218.6,0.8882]
[1736855550633,3.10614,3219.5,3218.7,0.38222308]
[1736855550936,0.03883192,3219.4,3218.7,0.67314309]
[1736855551302,3.10614,3219.5,3218.7,0.67314309]
[1736855551501,0.03883192,3219.4,3218.7,0.67314309]
[1736855551838,3.10614,3219.5,3218.8,0.29091763]
[1736855552341,3.8927,3219.6,3218.9,0.8882]
[1736855552497,3.10554,3220.1,3219.1,3.10643]
[1736855552694,0.8927,3219.9,3219.2,0.8882]
[1736855552922,0.8927,3219.6,3218.8,1.47003764]
[1736855553129,3.10624,3219.4,3218.8,1.47003764]
[1736855553330,0.03883281,3219.3,3218.8,0.8882]
[1736855554201,3.14499192,3219.5,3218.8,0.8882]
[1736855554401,0.0075,3219.4,3217.9,4.9340308]
[1736855554600,0.8927,3219.3,3218.2,3.10731]
[1736855554801,3.10652,3219.1,3218.2,3.10731]
[1736855555037,0.03883731,3219.0,3218.2,3.10731]
[1736855555240,3.14538731,3219.0,3218.3,0.29094961]
[1736855555501,0.8927,3218.8,3218.3,0.29094961]
[1736855555702,0.03884001,3218.7,3218.3,0.29094961]
[1736855556112,0.03884001,3218.7,3218.1,0.8882]
[1736855557021,0.03884001,3218.7,3218.2,0.29094626]
[1736855557934,0.8927,3219.7,3218.5,2.9340308]
[1736855558247,3.10602,3219.6,3218.8,0.8882]
[1736855558652,3.14492057,3219.5,3218.8,0.8882]
[1736855560116,3.10609,3219.5,3218.8,0.8882]
[1736855561709,0.0388326,3219.4,3218.8,0.8882]
[1736855562339,0.8519,3220.6,3219.2,0.8506]
[1736855562537,3.10537,3220.3,3219.3,3.10626]
[1736855562807,3.10537,3220.3,3219.4,0.8506]
[1736855563046,3.03882449,3220.2,3219.4,3.95669]
[1736855564563,3.03882449,3220.2,3219.4,0.8506]
[1736855564564,3.9575,3220.0,3219.4,0.8506]
[1736855564707,0.0075,3219.8,3219.1,0.8586]
[1736855564905,3.9092,3219.5,3219.1,0.8586]
[1736855565113,0.03883198,3219.4,3218.6,0.8586]
[1736855565341,0.03883198,3219.4,3218.6,3.96549]
[1736855565527,0.03883198,3219.4,3218.6,4.65544208]
[1736855566060,0.03883198,3219.4,3218.7,0.29071317]
[1736855566805,0.03883198,3219.4,3218.6,4.65544208]
[1736855567312,4.0153,3219.5,3218.6,1.54855208]
[1736855567636,4.0153,3219.5,3218.7,3.10683]
[1736855568344,0.03883245,3219.4,3218.7,3.10683]
[1736855568708,0.03883245,3219.4,3218.6,4.65545208]
[1736855569011,4.0153,3219.5,3218.6,4.65545208]
[1736855569406,4.0153,3219.5,3218.7,0.2906946]
[1736855570142,0.9092,3219.5,3218.7,0.2906946]
[1736855571143,0.9092,3219.5,3218.6,4.65540208]
[1736855572624,0.03883244,3219.4,3218.6,4.65540208]
[1736855573121,0.03883244,3219.4,3218.7,0.29069978]
[1736855573325,0.03883244,3219.4,3218.7,3.39752978]
[1736855573960,0.9092,3219.5,3218.7,3.10683]
[1736855574252,3.1063,3219.3,3218.6,0.8586]
[1736855574422,3.14519242,3219.2,3218.6,0.8586]
[1736855574621,3.14519242,3219.2,3218.1,2.9340308]
[1736855574622,4.01566,3219.1,3218.3,0.8586]
[1736855574838,3.14538726,3219.0,3218.3,0.8586]
[1736855578561,0.03883726,3219.0,3218.3,0.8586]
[1736855578752,3.10665,3218.9,3218.3,0.8586]
[1736855578927,0.03883884,3218.8,3218.3,0.8586]
[1736855580061,3.14560884,3218.8,3218.1,0.8928]
[1736855580265,0.9183,3218.7,3218.1,0.8928]
[1736855580464,0.03884003,3218.6,3218.1,0.8928]
[1736855580665,0.03884003,3218.6,3218.2,0.29096043]
[1736855582048,4.02519,3218.7,3218.2,0.29096043]
[1736855582266,4.02519,3218.7,3218.0,0.32456385]
[1736855582477,0.9183,3219.0,3218.0,0.32456385]
[1736855582768,0.9183,3219.0,3218.1,3.10741]
[1736855582966,3.9183,3219.0,3218.1,3.10741]
[1736855583146,0.0388388,3218.9,3218.1,3.10741]
[1736855583751,0.0388388,3218.9,3218.2,0.8928]
[1736855584005,0.0388388,3218.9,3218.2,4.00011]
[1736855584177,0.0388388,3218.9,3218.2,4.47720333]
[1736855584849,3.0388388,3218.9,3218.3,0.29082791]
[1736855585547,0.9183,3219.0,3218.2,4.00011]
[1736855586138,0.03883758,3218.9,3218.2,4.00011]
[1736855587855,0.03883758,3218.9,3218.2,0.8928]
[1736855588095,3.14549758,3218.9,3218.3,0.29087104]
[1736855588798,3.14549758,3218.9,3218.2,0.8928]
[1736855589797,3.10701,3218.6,3218.0,0.8928]
[1736855590014,3.14587305,3218.5,3218.0,0.8928]
[1736855591694,3.14587305,3218.5,3217.8,0.8928]
[1736855592974,3.14587305,3218.5,3217.9,0.2907897]
[1736855593171,0.03884305,3218.5,3217.9,0.2907897]
[1736855593505,4.0252,3218.7,3217.9,0.2907897]
[1736855593506,0.9183,3218.7,3217.9,0.2907897]
[1736855594019,0.9183,3218.7,3218.0,0.2907897]
[1736855594899,4.02516,3218.7,3218.0,0.2907897]
[1736855595104,4.02516,3218.7,3217.8,6.9345008]
[1736855595303,4.02516,3218.7,3217.8,3.8268308]
[1736855595304,3.14578253,3218.6,3217.8,3.8268308]
[1736855595687,3.14578253,3218.6,3217.8,0.8928]
[1736855596408,3.14578253,3218.6,3217.9,0.29095574]
[1736855597881,3.10694,3218.6,3218.0,0.29095574]
[1736855598208,3.0075,3218.8,3218.0,0.29095574]
[1736855598209,3.0,3218.8,3218.1,0.8504]
[1736855598373,0.03883769,3218.8,3218.1,3.95774]
[1736855598578,0.03883769,3218.8,3218.2,0.42486957]
[1736855598775,0.03883769,3218.8,3218.2,0.71582531]
[1736855599709,0.03883769,3218.8,3218.3,0.8504]
[1736855600084,0.926,3219.1,3218.3,4.24857574]
[1736855600285,4.03225,3219.4,3218.4,0.8504]
[1736855600606,4.03225,3219.4,3218.5,0.8504]
[1736855600790,3.0,3219.3,3218.5,4.36494865]
[1736855601312,3.0,3219.3,3218.6,0.29095574]
[1736855602206,4.03225,3219.4,3218.6,0.29095574]
[1736855602383,0.926,3219.4,3218.7,1.14135574]
[1736855602589,3.10608,3219.5,3218.7,1.14135574]
[1736855602985,3.0,3219.6,3218.8,0.8504]
[1736855603185,0.926,3219.9,3219.1,3.10637]
[1736855603391,0.926,3219.9,3219.2,0.8504]
[1736855603788,3.96482659,3219.9,3219.2,0.8504]
[1736855604172,3.0,3219.9,3219.2,0.8504]
[1736855604409,3.0,3219.9,3219.2,3.95672]
[1736855604410,0.03882613,3219.9,3219.2,3.95672]
[1736855604708,0.03882613,3219.9,3219.2,4.64580008]
[1736855605305,0.03882613,3219.9,3219.2,1.53948008]
[1736855605478,0.03882466,3219.9,3219.2,1.53948008]
[1736855608581,0.03882466,3219.9,3219.2,0.8504]
[1736855609605,3.10579,3219.8,3219.2,0.8504]
[1736855609793,0.03882741,3219.7,3219.2,0.8504]
[1736855611440,6.10534,3220.3,3218.3,8.74948236]
[1736855611441,0.0075,3219.5,3218.6,0.8504]
[1736855611732,3.10637,3219.2,3218.6,0.8504]
[1736855611937,0.92533362,3219.1,3218.6,0.8504]
[1736855612229,3.10666,3218.9,3218.5,0.29032628]
[1736855612385,0.03883745,3218.8,3218.5,0.29032628]
[1736855612817,0.03883745,3218.8,3218.3,0.8504]
[1736855613015,3.14562745,3218.8,3218.3,0.8504]
[1736855614228,3.14562745,3218.8,3218.4,0.3112]
[1736855614428,3.14562745,3218.8,3218.3,0.8504]
[1736855617617,3.0,3218.9,3218.3,0.8504]
[1736855618691,3.10617,3219.4,3218.5,0.8504]
[1736855618692,0.8865,3219.4,3218.5,0.8504]
[1736855618931,0.038834,3219.3,3218.5,0.8504]
[1736855619101,3.038834,3219.3,3218.5,4.24769579]
[1736855620028,3.145174,3219.3,3218.5,1.14074579]
[1736855620628,3.145174,3219.3,3218.5,0.8504]
[1736855620829,3.10636,3219.2,3218.5,0.8504]
[1736855620994,0.03883356,3219.1,3218.5,0.8504]
[1736855622723,0.03883356,3219.1,3218.5,1.31477866]
[1736855622917,3.10636,3219.2,3218.5,1.31477866]
[1736855623123,0.03883364,3219.1,3218.5,1.31477866]
[1736855624042,0.03883364,3219.1,3218.6,0.8504]
[1736855624336,0.03883364,3219.2,3218.6,0.8504]
[1736855624549,3.0,3219.3,3218.7,0.47122659]
[1736855624749,3.0,3219.3,3218.8,0.8088]
[1736855625048,3.10579,3219.8,3218.8,3.91545]
[1736855625195,3.10588,3219.7,3218.8,3.91545]
[1736855625756,3.0,3219.6,3218.8,3.91545]
[1736855625961,3.0,3219.6,3218.9,0.73207074]
[1736855626819,0.03882976,3219.5,3218.9,0.73207074]
[1736855627017,3.0,3219.6,3218.9,0.73207074]
[1736855627457,3.0,3219.6,3219.0,0.8088]
[1736855627757,3.10552,3220.1,3219.4,0.8088]
[1736855627932,3.03882456,3220.0,3219.4,0.8088]
[1736855628335,3.10578,3219.8,3219.4,0.8088]
[1736855628537,0.03882732,3219.7,3219.4,0.8088]
[1736855629132,0.03882662,3219.9,3219.4,0.8088]
[1736855629271,0.03882662,3219.9,3219.4,1.200308]
[1736855629587,3.10569,3219.9,3219.4,1.200308]
[1736855629755,0.0388251,3219.8,3219.4,0.8088]
[1736855630568,3.14434468,3220.1,3219.4,0.8088]
[1736855632999,0.03882468,3220.1,3219.4,0.8088]
[1736855633158,3.10561,3220.0,3219.4,0.8088]
[1736855633345,0.0388247,3219.9,3219.4,0.8088]
[1736855635458,0.03882467,3220.1,3219.4,0.8088]
[1736855636803,0.55,3220.0,3219.4,0.8088]
[1736855637005,0.03882466,3219.9,3219.4,0.8088]
[1736855637161,0.03882466,3219.9,3219.4,1.200309]
[1736855642190,3.55,3220.0,3219.4,1.200309]
[1736855642570,0.03882466,3219.9,3219.4,0.8088]
[1736855645698,3.55,3220.0,3219.4,0.8088]
[1736855646799,0.03882429,3219.9,3219.4,0.8088]
[1736855647183,3.55,3220.0,3219.4,0.8088]
[1736855648677,3.0,3220.2,3219.4,0.8088]
[1736855648878,3.0,3220.4,3219.4,0.8088]
[1736855649100,0.55,3220.1,3219.4,0.8088]
[1736855649399,0.55,3220.1,3219.4,1.200301]
[1736855649699,3.55,3220.1,3219.4,4.306461]
[1736855650069,0.03882344,3220.0,3219.4,0.8088]
[1736855650962,3.14442344,3220.0,3219.4,0.8088]
[1736855651389,0.55,3219.9,3219.4,0.8088]
[1736855651579,0.03882457,3219.8,3219.4,0.8088]
[1736855656906,0.03882457,3219.8,3219.5,0.29139991]
[1736855657380,0.58882462,3219.9,3219.5,0.29139991]
[1736855657575,0.55,3220.1,3219.5,0.29139991]
[1736855657777,3.65554,3220.1,3219.5,0.29139991]
[1736855658381,3.65554,3220.1,3219.6,0.29139991]
[1736855659903,3.65554,3220.1,3219.4,0.8088]
[1736855660072,3.55,3220.1,3219.4,3.91494]
[1736855660273,0.03882257,3220.0,3219.4,3.91494]
[1736855660983,0.03882257,3220.0,3219.5,0.29155039]
[1736855662207,0.03882257,3220.0,3219.6,0.29155039]
[1736855662994,0.03882257,3220.0,3219.4,3.91494]
[1736855663322,0.03882257,3220.0,3219.4,4.306434]
[1736855664487,0.03882257,3220.0,3219.5,0.29154524]
[1736855665097,0.03882257,3220.0,3219.6,0.7826]
[1736855665299,3.10503,3220.6,3219.7,0.7826]
[1736855665625,3.10503,3220.6,3220.0,0.7826]
[1736855665821,0.55,3220.5,3220.0,0.7826]
[1736855665988,3.69391869,3220.5,3220.0,0.7826]
[1736855669029,3.0,3220.3,3220.0,0.7826]
[1736855669189,0.03881875,3220.2,3220.0,0.7826]
[1736855669391,3.03881875,3220.3,3220.0,0.7826]
[1736855671725,0.03881875,3220.3,3220.0,0.7826]
[1736855671934,0.03881873,3220.5,3220.0,0.7826]
[1736855672095,0.62686269,3220.9,3220.1,3.88808]
[1736855672302,0.0388139,3220.8,3220.3,0.7826]
[1736855673342,3.94127,3221.2,3220.3,3.88788]
[1736855673641,0.8368,3221.7,3220.8,0.7826]
[1736855673808,0.03880988,3221.5,3220.8,0.7826]
[1736855674006,3.0,3221.3,3220.8,0.7826]
[1736855674341,3.03880693,3221.3,3220.8,0.7826]
[1736855675203,3.14316693,3221.3,3220.8,0.7826]
[1736855675939,0.55,3221.2,3220.8,0.7826]
[1736855676250,0.55,3221.0,3220.8,0.7826]
[1736855676452,0.8368,3221.3,3220.8,0.7826]
[1736855676453,3.58881054,3221.2,3220.8,0.7826]
[1736855677011,0.58881054,3221.2,3220.8,0.7826]
[1736855677413,3.10409,3221.6,3220.8,0.7826]
[1736855677613,3.10409,3221.6,3220.8,4.276169]
[1736855677836,0.55,3221.5,3220.9,0.7826]
[1736855678442,3.65415,3221.5,3220.9,0.7826]
[1736855678831,0.55,3221.3,3220.9,0.7826]
[1736855682113,0.55,3221.5,3220.9,0.7826]
[1736855683064,0.55,3221.5,3220.9,1.171349]
[1736855683220,0.55,3221.3,3220.9,1.171349]
[1736855684227,0.03880714,3221.4,3220.9,1.171349]
[1736855684228,3.10389,3221.8,3220.9,1.171349]
[1736855684435,3.0,3221.6,3220.9,1.171349]
[1736855684971,0.55,3221.5,3220.9,1.171349]
[1736855685258,0.5575,3221.8,3221.1,0.783]
[1736855685583,0.55,3221.5,3221.1,0.783]
[1736855685781,0.03880652,3221.4,3221.1,0.783]
[1736855688151,0.55,3221.5,3221.1,0.783]
[1736855688350,0.03880651,3221.4,3221.1,0.783]
[1736855691578,0.03880651,3221.4,3220.8,0.783]
[1736855691778,0.03880651,3221.4,3220.9,0.388789]
[1736855700973,0.03880651,3221.4,3220.8,0.783]
[1736855701899,0.03880651,3221.4,3220.9,0.29102674]
[1736855702822,0.03880651,3221.4,3220.8,0.783]
[1736855702973,0.55,3221.3,3220.8,0.783]
[1736855703173,3.92173,3221.0,3220.6,0.783]
[1736855703413,0.5888122,3220.9,3220.0,0.783]
[1736855703769,3.6935922,3220.9,3220.1,1.39016334]
[1736855704113,3.10483,3220.8,3220.1,1.8562114]
[1736855704351,0.0388154,3220.7,3220.2,0.29128003]
[1736855704475,3.10483,3220.8,3220.3,1.39016334]
[1736855705209,0.0388154,3220.7,3220.3,1.39016334]
[1736855705725,0.0388154,3220.7,3220.4,0.29128003]
[1736855706413,0.55,3220.9,3220.4,0.29128003]
[1736855706414,3.03881538,3220.8,3220.4,0.29128003]
[1736855706613,3.03881538,3220.8,3220.1,1.39016334]
[1736855707612,3.03881538,3220.8,3220.2,0.29098317]
[1736855708691,3.03881538,3220.8,3220.1,1.39016334]
[1736855710323,3.655,3220.7,3220.0,0.783]
[1736855710522,3.96094676,3220.6,3220.0,0.783]
[1736855712321,3.92213,3220.6,3220.0,0.783]
[1736855712821,3.92213,3220.6,3220.1,1.39016334]
[1736855714789,3.92213,3220.6,3220.0,0.783]
[1736855715031,0.0388179,3220.5,3220.0,0.783]
[1736855715330,3.1439679,3220.5,3220.0,0.783]
[1736855719451,3.1439679,3220.5,3220.1,1.39016334]
[1736855722849,3.1439679,3220.5,3220.0,0.783]
[1736855724066,3.1439679,3220.5,3219.9,1.39016334]
[1736855728259,3.1439679,3220.5,3219.9,1.65399107]
[1736855731594,3.10532,3220.3,3219.8,0.7829]
[1736855731809,0.03881994,3220.2,3219.8,0.7829]
[1736855732297,0.03881994,3220.2,3219.9,0.29104325]
[1736855733398,0.03881994,3220.2,3219.8,0.7829]
[1736855733592,0.03881994,3220.2,3219.8,1.00020633]
[1736855733804,0.91991994,3220.2,3219.8,0.21730633]
[1736855733967,0.91991994,3220.2,3219.9,0.4660682]
[1736855734762,0.91991994,3220.2,3220.0,0.29131722]
[1736855736594,0.91991994,3220.2,3219.8,0.21730633]
[1736855736805,0.91991994,3220.2,3219.9,0.16074697]
[1736855738824,0.91991994,3220.2,3220.0,0.29139209]
[1736855739319,0.8811,3220.5,3220.1,2.17306334]
[1736855739976,0.8811,3220.5,3220.1,0.7829]
[1736855740178,0.8811,3220.5,3220.2,0.29139209]
[1736855741806,0.8811,3220.5,3220.3,0.29139209]
[1736855742936,0.0388166,3220.4,3220.3,0.29139209]
[1736855743136,0.0388166,3220.4,3219.9,0.94364697]
[1736855743472,0.0388166,3220.4,3219.9,0.16074697]
[1736855743688,0.0388166,3220.4,3219.8,0.21730633]
[1736855744220,0.0388166,3220.4,3219.9,0.29137529]
[1736855744923,3.98626,3220.5,3219.9,0.29137529]
[1736855745620,0.8811,3220.5,3220.0,0.29137529]
[1736855746378,0.9046,3220.7,3220.2,1.39016334]
[1736855746578,0.9046,3220.9,3220.2,4.7419772]
[1736855747592,0.9046,3220.9,3220.3,0.29137529]
[1736855748306,0.9046,3221.1,3220.5,0.7828]
[1736855748543,0.9046,3221.1,3220.6,4.49513334]
[1736855748683,0.9046,3221.4,3220.8,4.49497334]
[1736855748887,0.9046,3221.4,3220.9,0.7828]
[1736855750314,0.03880633,3221.3,3220.9,0.7828]
[1736855750725,0.03880633,3221.3,3220.7,0.7828]
[1736855750932,0.03880633,3221.3,3220.5,0.7828]
[1736855751225,3.14319633,3221.3,3220.5,0.7828]
[1736855751460,0.9046,3221.2,3220.5,1.35915317]
[1736855751672,0.0388096,3221.1,3220.5,1.35915317]
[1736855753075,0.0388096,3221.1,3220.6,1.39016334]
[1736855753246,0.9046,3221.2,3220.6,1.39016334]
[1736855753422,0.94340953,3221.2,3220.7,0.52780233]
[1736855754227,0.03880953,3221.2,3220.7,0.52780233]
[1736855754683,0.03880763,3221.3,3220.8,0.7828]
[1736855756280,0.03880763,3221.3,3220.9,0.3112]
[1736855756444,1.4069,3221.6,3220.8,0.7828]
[1736855756645,1.4069,3221.6,3220.9,3.10471]
[1736855757537,1.4069,3221.6,3221.0,0.7828]
[1736855757538,0.55,3221.6,3221.0,0.7828]
[1736855757932,3.96083,3221.8,3221.0,0.7828]
[1736855758128,3.96083,3221.8,3221.0,3.8874]
[1736855758378,0.55,3221.7,3221.0,4.31861449]
[1736855758933,0.55,3221.7,3221.0,1.21401449]
[1736855759678,3.55,3221.7,3221.0,4.31863449]
[1736855760575,3.55,3221.7,3221.0,1.21401449]
[1736855760897,3.14284457,3221.6,3221.0,1.21401449]
[1736855761180,3.14284457,3221.6,3220.8,1.20754485]
[1736855761181,0.8862,3221.5,3220.8,1.20754485]
[1736855761363,0.03880499,3221.4,3220.8,1.20754485]
[1736855761989,0.03880499,3221.4,3220.8,4.31235485]
[1736855762289,0.03880499,3221.4,3220.8,1.20754485]
[1736855763266,0.92500457,3221.5,3220.8,1.20754485]
[1736855763455,0.92500457,3221.5,3220.9,0.46028016]
[1736855764056,0.8862,3221.5,3220.9,3.56496016]
[1736855764474,0.8862,3221.5,3221.0,3.1046]
[1736855764671,0.8862,3221.5,3220.9,0.46028016]
[1736855764886,0.03880457,3221.4,3220.9,0.46028016]
[1736855765066,0.92500457,3221.5,3220.9,0.46028016]
[1736855765264,0.92500457,3221.5,3221.0,0.4772595]
[1736855765657,0.8862,3221.5,3221.0,0.4772595]
[1736855768849,0.8862,3221.5,3221.0,3.5818695]
[1736855769577,3.0,3221.8,3221.1,3.88731]
[1736855769998,0.8862,3221.9,3221.1,3.88731]
[1736855770311,0.03880122,3221.8,3221.2,0.43645695]
[1736855770729,0.03880122,3221.8,3221.1,0.7828]
[1736855771519,3.14267122,3221.8,3221.1,0.7828]
[1736855772462,0.03880122,3221.8,3221.1,0.7828]
[1736855772722,3.10427,3221.4,3220.5,0.7828]
[1736855772914,0.03880549,3221.3,3220.5,3.88781]
[1736855773223,0.8862,3221.2,3220.6,0.388781]
[1736855775491,0.8862,3221.2,3220.7,0.29072724]
[1736855776999,3.14333874,3221.1,3220.7,0.29072724]
[1736855777410,0.8946,3221.0,3220.3,0.46320811]
[1736855777718,3.99923,3221.0,3220.3,0.46320811]
[1736855777922,3.99923,3221.0,3220.3,0.89829392]
[1736855778298,3.99923,3221.0,3220.4,0.29104944]
[1736855779272,3.99923,3221.0,3220.5,0.29104944]
[1736855780762,3.10473,3220.9,3220.3,0.32420811]
[1736855780922,3.14354266,3220.9,3220.3,0.32420811]
[1736855781123,1.4446,3220.8,3220.3,0.32420811]
[1736855781462,0.8946,3220.4,3220.3,0.32420811]
[1736855781611,3.9998,3220.4,3220.3,0.32420811]
[1736855782015,0.55,3220.8,3220.3,0.32420811]
[1736855782016,3.10461,3221.1,3220.3,0.32420811]
[1736855782260,0.8946,3221.0,3220.4,0.7822]
[1736855782966,0.8946,3221.0,3220.4,1.20337281]
[1736855783262,0.03881146,3220.9,3220.4,1.20337281]
[1736855783479,0.8946,3221.0,3220.4,1.20337281]
[1736855783623,0.8946,3221.0,3220.5,0.29092051]
[1736855783826,0.03881195,3220.9,3220.5,0.29092051]
[1736855784643,0.03881195,3220.9,3220.4,1.20337281]
[1736855784844,3.14356195,3220.9,3220.3,0.32420811]
[1736855785034,3.10483,3220.8,3220.3,0.32420811]
[1736855785235,0.03881427,3220.7,3220.3,0.32420811]
[1736855787427,1.4446,3220.6,3220.3,0.32420811]
[1736855787631,0.93341878,3220.5,3220.3,0.32420811]
[1736855787864,3.1052,3220.4,3220.3,0.32420811]
[1736855788067,3.9998,3220.4,3219.6,0.7822]
[1736855788267,0.03881893,3220.3,3219.8,0.32441485]
[1736855788585,0.8946,3220.1,3219.8,0.32441485]
[1736855788778,0.933421,3220.1,3219.8,0.32441485]